bitfinex-derivatives/quotes_ETHF0:USTF0_20250905
["timestamp","ask_amount","ask_price","bid_price","bid_amount"]
[1757098937902,0.2704,4309.8,4309.7,0.9378]
[1757098939816,0.2771,4310.1,4310.0,1.1297]
[1757098940608,0.5378,4310.1,4310.0,1.1297]
[1757098941208,0.236,4310.3,4310.2,0.5507]
[1757098941504,0.236,4310.3,4310.2,0.9753]
[1757098941903,3.2078,4310.7,4310.2,0.5507]
[1757098942107,0.5131,4310.6,4310.5,1.1297]
[1757098942500,0.2771,4310.6,4310.5,1.1297]
[1757098942700,0.5378,4310.6,4310.5,1.1297]
[1757098944214,0.9415,4310.6,4310.5,1.1297]
[1757098944913,1.5405182,4310.6,4310.0,0.1544]
[1757098945218,0.2771,4310.2,4310.1,0.9753]
[1757098947507,0.5378,4310.2,4310.1,0.9753]
[1757098947712,4.1493,4310.2,4310.1,0.4246]
[1757098948110,3.7456,4310.2,4310.1,0.9753]
[1757098948616,4.1493,4310.2,4310.1,0.9753]
[1757098949116,4.74976165,4310.2,4310.1,0.9753]
[1757098949714,4.74976165,4310.2,4310.1,0.4246]
[1757098949914,4.74976165,4310.2,4309.6,0.237]
[1757098949915,4.74976165,4310.2,4309.7,0.4246]
[1757098950111,0.2771,4309.7,4309.6,1.2123]
[1757098951109,4.1493,4309.7,4308.8,5.607]
[1757098951313,0.9415,4309.2,4309.1,0.6981]
[1757098951517,1.37503428,4309.2,4309.1,0.9753]
[1757098951718,0.7748,4309.2,4309.1,0.9753]
[1757098952217,0.5378,4309.2,4309.1,0.9753]
[1757098952414,1.1775,4309.2,4309.1,0.4246]
[1757098952616,1.1775,4309.2,4309.1,0.2735]
[1757098952816,0.7738,4309.2,4309.1,0.9753]
[1757098953011,0.9415,4308.8,4308.5,0.1544]
[1757098953218,0.9415,4308.7,4308.6,0.4246]
[1757098953418,1.1775,4308.7,4308.6,0.4246]
[1757098955032,1.1775,4308.7,4308.0,0.579]
[1757098955033,0.5378,4308.1,4308.0,0.579]
[1757098955333,4.3863,4308.1,4307.6,0.4246]
[1757098955536,0.9415,4307.7,4307.6,0.6981]
[1757098955831,0.5378,4307.7,4307.6,0.9753]
[1757098956839,3.4849,4308.1,4308.0,1.1297]
[1757098957038,3.7219,4308.1,4308.0,1.1297]
[1757098957238,4.3863,4308.1,4308.0,1.1297]
[1757098957840,3.9826,4308.1,4308.0,1.1297]
[1757098958034,3.7219,4308.1,4308.0,1.1297]
[1757098958235,3.4448,4308.1,4308.0,1.1297]
[1757098958735,0.237,4308.1,4308.0,1.1297]
[1757098958931,3.2078,4308.6,4308.0,1.1297]
[1757098959131,3.7456,4308.6,4308.5,0.8525]
[1757098959337,3.9826,4308.6,4308.5,0.8525]
[1757098959531,3.7456,4308.6,4308.5,0.8525]
[1757098959739,3.9826,4308.6,4308.5,1.1297]
[1757098959940,3.7219,4308.6,4308.5,1.1297]
[1757098960640,3.4849,4308.6,4308.5,1.1297]
[1757098960838,3.7219,4308.6,4308.5,1.1297]
[1757098961342,3.9826,4308.6,4308.5,1.1297]
[1757098964342,3.9826,4308.6,4308.0,0.1544]
[1757098964343,4.3863,4308.6,4308.0,0.1544]
[1757098964539,0.5378,4308.1,4308.0,1.1297]
[1757098964840,0.2771,4308.1,4308.0,1.1297]
[1757098965038,0.236,4308.3,4308.0,1.1297]
[1757098965342,0.2771,4308.3,4308.2,0.9753]
[1757098965742,0.236,4308.5,4308.2,0.9753]
[1757098965932,0.2771,4308.4,4308.3,0.9753]
[1757098967739,3.2078,4308.6,4308.3,0.9753]
[1757098967938,0.236,4308.6,4308.5,1.1297]
[1757098968340,0.5029,4308.7,4308.6,0.9318]
[1757098968844,0.7587,4308.7,4308.6,0.9318]
[1757098969638,0.2669,4308.7,4308.6,0.9318]
[1757098969834,0.5227,4308.7,4308.6,0.9318]
[1757098970542,3.7305,4309.1,4309.0,1.0866]
[1757098970946,3.9665,4309.1,4309.0,1.0866]
[1757098973751,3.7305,4309.1,4309.0,1.0866]
[1757098973943,3.9665,4309.1,4309.0,1.0866]
[1757098974454,3.7305,4309.1,4309.0,1.0866]
[1757098974644,3.9665,4309.1,4309.0,1.0866]
[1757098975152,4.3596,4309.1,4309.0,1.0866]
[1757098976349,3.9665,4309.1,4309.0,1.0866]
[1757098977254,3.2078,4309.1,4309.0,1.0866]
[1757098978253,0.5029,4309.5,4309.4,0.5195]
[1757098978456,0.7587,4309.5,4309.4,0.9318]
[1757098978653,1.35782135,4309.5,4309.4,0.9318]
[1757098978950,0.5227,4309.5,4309.4,0.9318]
[1757098979151,3.2078,4309.6,4309.4,0.5195]
[1757098979356,3.2078,4309.6,4309.5,1.0866]
[1757098980051,3.4747,4309.6,4309.5,1.0866]
[1757098980254,0.2669,4309.6,4309.5,1.0866]
[1757098981550,0.5029,4309.9,4309.8,0.5195]
[1757098981757,0.5227,4309.9,4309.8,0.9318]
[1757098982059,1.7514753,4309.9,4309.8,0.6798]
[1757098982250,1.7514753,4309.9,4309.8,0.4123]
[1757098982451,1.7514753,4309.9,4309.8,0.6798]
[1757098984057,1.3583753,4309.9,4309.8,0.9318]
[1757098984558,0.7587,4309.9,4309.8,0.9318]
[1757098984956,0.5227,4309.9,4309.8,0.9318]
[1757098985256,0.7587,4309.9,4309.8,0.9318]
[1757098986057,0.5227,4309.9,4309.8,0.9318]
[1757098986558,3.2078,4310.1,4310.0,0.1548]
[1757098986752,4.30983217,4310.1,4310.0,1.0866]
[1757098986952,4.95873217,4310.1,4310.0,0.5671]
[1757098987757,4.72273217,4310.1,4310.0,0.4123]
[1757098987952,4.95873217,4310.1,4309.5,0.1548]
[1757098988154,4.1236,4309.6,4309.1,0.4123]
[1757098988354,0.9158,4309.2,4309.1,0.4123]
[1757098988661,0.236,4309.5,4309.1,0.5195]
[1757098988862,0.5029,4309.5,4309.4,0.5195]
[1757098989062,0.5029,4309.5,4309.4,0.9318]
[1757098989561,0.7587,4309.5,4309.4,0.9318]
[1757098989762,0.5227,4309.5,4309.4,0.9318]
[1757098990060,3.2078,4309.6,4309.5,1.0866]
[1757098990259,3.9665,4310.1,4310.0,0.8346]
[1757098990460,4.95889029,4310.1,4309.6,0.4123]
[1757098990660,1.24819029,4310.0,4309.9,0.6798]
[1757098990860,1.51509029,4310.0,4309.9,0.6798]
[1757098992260,5.88321029,4310.0,4308.6,0.4123]
[1757098992453,3.7305,4308.8,4308.7,0.6798]
[1757098993359,3.7305,4308.8,4308.7,0.9318]
[1757098994662,3.4747,4308.8,4308.7,0.9318]
[1757098994866,3.7305,4308.8,4308.7,0.9318]
[1757098995064,3.7305,4308.8,4308.5,0.1544]
[1757098995365,0.5227,4308.6,4308.5,0.6739]
[1757098995566,0.5227,4308.6,4308.5,0.4219]
[1757098995766,0.9158,4308.6,4308.5,0.8342]
[1757098996860,0.5227,4308.6,4308.5,1.0862]
[1757098998373,0.5227,4308.6,4308.5,1.1041]
[1757099005771,0.9016,4308.6,4308.5,0.8291]
[1757099005978,0.8894,4308.1,4308.0,0.8268]
[1757099006284,0.5105,4308.1,4308.0,1.1018]
[1757099006478,0.236,4308.5,4308.1,0.402]
[1757099006683,4.0934,4308.8,4308.7,0.947]
[1757099006983,4.92977637,4308.8,4308.7,0.947]
[1757099007384,4.69377637,4308.8,4308.7,0.947]
[1757099007680,4.55467637,4308.8,4308.7,0.947]
[1757099008281,4.29797637,4308.8,4308.7,0.947]
[1757099008784,4.04417637,4308.8,4308.7,0.947]
[1757099009175,4.29797637,4308.8,4308.7,0.947]
[1757099010184,3.6976,4308.8,4308.7,0.947]
[1757099010384,3.2078,4308.8,4308.7,0.947]
[1757099011381,3.4616,4308.8,4308.7,0.947]
[1757099012383,3.7183,4308.8,4308.7,0.947]
[1757099012982,4.0934,4308.8,4308.7,0.947]
[1757099013281,4.0934,4308.8,4308.1,0.402]
[1757099013282,4.92967798,4308.8,4308.1,0.402]
[1757099013482,4.3294,4308.8,4308.1,0.402]
[1757099013784,0.2538,4308.2,4308.1,0.947]
[1757099015486,0.6111,4308.6,4308.5,0.6918]
[1757099015487,0.4898,4308.6,4308.5,0.6918]
[1757099015690,0.7465,4308.6,4308.5,1.0938]
[1757099016483,1.1216,4308.6,4308.5,1.0938]
[1757099018192,1.72223972,4308.6,4308.5,1.0938]
[1757099019587,1.09043972,4308.6,4308.5,1.0938]
[1757099019988,1.34713972,4308.6,4308.5,1.0938]
[1757099022389,1.72223972,4308.6,4308.5,1.0938]
[1757099022592,1.34713972,4308.6,4308.5,1.0938]
[1757099023490,1.72223972,4308.6,4308.5,1.0938]
[1757099024988,1.34713972,4308.6,4308.5,1.0938]
[1757099031701,1.11113972,4308.6,4308.5,1.0938]
[1757099032394,1.47613972,4308.6,4308.5,0.402]
[1757099032592,0.5177,4308.1,4308.0,0.7793]
[1757099032788,0.8827,4308.1,4308.0,0.7793]
[1757099032994,0.8827,4308.1,4308.0,1.0418]
[1757099032995,0.2563,4308.1,4308.0,1.0418]
[1757099033195,3.2078,4308.3,4308.0,1.0418]
[1757099033400,3.2078,4308.3,4308.2,0.887]
[1757099033596,3.2078,4308.3,4308.0,0.1548]
[1757099033597,3.2078,4308.8,4308.7,0.5086]
[1757099033798,3.80980762,4308.8,4308.7,0.887]
[1757099034697,4.06610762,4308.8,4308.7,0.887]
[1757099035198,4.32750762,4308.8,4308.7,0.887]
[1757099035498,4.69250762,4308.8,4308.7,0.3784]
[1757099035704,4.69250762,4308.8,4308.7,0.6245]
[1757099035905,4.32750762,4308.8,4308.7,0.887]
[1757099036094,4.56350762,4308.8,4308.7,0.887]
[1757099036299,4.92850762,4308.8,4308.7,0.887]
[1757099037902,4.92850762,4308.8,4308.7,0.6245]
[1757099039308,4.92850762,4308.8,4308.1,0.3784]
[1757099039309,5.16059762,4308.8,4308.1,0.3784]
[1757099039504,0.8827,4308.1,4308.0,0.4009]
[1757099040010,0.8827,4308.1,4308.0,1.0418]
[1757099040306,0.5177,4308.1,4308.0,1.0418]
[1757099042203,3.2078,4308.3,4308.1,0.3784]
[1757099042407,3.2078,4308.3,4308.2,0.887]
[1757099043410,3.4641,4308.3,4308.2,0.887]
[1757099043712,4.0905,4308.3,4308.2,0.3784]
[1757099044010,4.69266545,4308.3,4308.2,0.3784]
[1757099044816,4.69266545,4308.3,4308.2,0.6245]
[1757099045004,4.32766545,4308.3,4308.2,0.887]
[1757099045205,4.69266545,4308.3,4308.2,0.887]
[1757099045413,4.69266545,4308.3,4308.2,0.6245]
[1757099048212,4.69264812,4308.3,4308.2,0.6245]
[1757099049013,3.4641,4308.3,4308.2,0.887]
[1757099049512,3.2078,4308.3,4308.2,0.887]
[1757099049702,1.24558978,4309.5,4308.6,0.887]
[1757099049905,1.24558978,4309.5,4308.5,0.1495]
[1757099049906,1.11976402,4309.4,4309.3,0.2625]
[1757099050107,0.85836402,4309.4,4309.3,0.887]
[1757099050312,0.5177,4309.4,4309.3,0.887]
[1757099050504,1.48447372,4309.4,4309.3,0.3784]
[1757099050815,1.72047372,4309.4,4309.1,0.3784]
[1757099051011,0.5177,4308.9,4308.8,0.3784]
[1757099051208,0.8827,4308.9,4308.8,0.92223447]
[1757099051912,0.5177,4308.9,4308.8,1.18473447]
[1757099052714,3.2078,4309.5,4309.4,0.887]
[1757099053013,0.60151974,4309.5,4309.4,1.18473447]
[1757099053317,0.2563,4310.0,4309.9,0.887]
[1757099053615,0.5177,4310.0,4309.9,1.18473447]
[1757099055022,4.0905,4310.5,4310.4,0.6245]
[1757099055314,4.0905,4310.5,4310.4,0.92223447]
[1757099056116,4.0905,4310.5,4310.4,0.29773447]
[1757099056314,0.8827,4310.2,4310.1,0.3784]
[1757099056613,0.5177,4310.2,4309.7,0.6144]
[1757099056808,0.365,4309.7,4309.5,0.1495]
[1757099057009,0.8827,4309.7,4309.6,0.92119545]
[1757099057813,0.5177,4309.7,4309.6,1.18369545]
[1757099058714,0.869,4309.7,4309.6,1.18369545]
[1757099060720,0.869,4309.7,4309.6,0.92119545]
[1757099061318,0.869,4309.7,4309.6,0.29669545]
[1757099061619,0.869,4309.7,4309.1,0.3686]
[1757099061823,0.8647,4309.3,4309.2,0.92342762]
[1757099062422,4.0725,4309.3,4309.2,0.66512762]
[1757099062615,3.7212,4309.3,4309.2,1.18852762]
[1757099063213,3.7212,4309.3,4309.2,1.1885689]
[1757099064518,3.2078,4309.3,4309.2,1.1885689]
[1757099065015,0.236,4309.7,4309.6,0.892]
[1757099065220,3.4438,4309.8,4309.7,0.892]
[1757099065419,3.2078,4309.8,4309.7,1.18853017]
[1757099066020,3.4703,4309.8,4309.7,1.18853017]
[1757099066921,3.5591,4310.3,4309.7,0.81993017]
[1757099067221,0.4985,4310.1,4310.0,1.0436]
[1757099067919,0.2625,4310.1,4310.0,1.0436]
[1757099068323,0.2625,4310.1,4310.0,1.3400774]
[1757099068324,0.861,4310.1,4310.0,1.3400774]
[1757099069016,0.5134,4310.1,4310.0,1.3400774]
[1757099069817,0.861,4310.1,4310.0,0.6650774]
[1757099070027,1.097,4310.1,4310.0,0.6650774]
[1757099071829,1.097,4310.1,4310.0,0.9233774]
[1757099072332,1.097,4310.1,4310.0,1.0749774]
[1757099073423,1.097,4310.1,4310.0,0.6650774]
[1757099073625,1.097,4310.1,4310.0,1.0749774]
[1757099073930,1.097,4310.1,4310.0,1.3400774]
[1757099074327,1.097,4310.1,4310.0,0.2964774]
[1757099074726,1.097,4310.1,4310.0,0.6650774]
[1757099074727,0.861,4310.1,4310.0,0.6650774]
[1757099074925,1.097,4310.1,4310.0,0.3686]
[1757099075625,1.097,4310.1,4310.0,0.6269]
[1757099076137,1.097,4310.1,4310.0,0.3686]
[1757099076927,0.5134,4310.1,4310.0,1.0436]
[1757099077125,0.2625,4310.1,4310.0,1.0436]
[1757099077329,0.2625,4310.1,4310.0,1.34110406]
[1757099077724,0.5134,4310.1,4310.0,0.81770406]
[1757099077925,1.45939474,4310.1,4310.0,0.3686]
[1757099078129,1.45939474,4310.1,4310.0,0.29764199]
[1757099078426,1.69539474,4310.1,4310.0,0.29764199]
[1757099078634,1.69539474,4310.1,4310.0,0.66624199]
[1757099079130,1.34779474,4310.1,4310.0,1.34124199]
[1757099079537,1.11179474,4310.1,4310.0,1.34124199]
[1757099079832,1.34779474,4310.1,4310.0,1.34124199]
[1757099080021,1.11179474,4310.1,4310.0,1.34140002]
[1757099080429,1.34779474,4310.1,4310.0,1.34140002]
[1757099080626,1.69539474,4310.1,4310.0,1.34140002]
[1757099080928,1.34779474,4310.1,4310.0,1.34140002]
[1757099081932,1.69539474,4310.1,4310.0,1.34140002]
[1757099083128,1.69539474,4310.1,4310.0,1.07630002]
[1757099083336,1.69539474,4310.1,4310.0,0.92470002]
[1757099083534,1.69539474,4310.1,4310.0,0.66640002]
[1757099083738,1.69539474,4310.1,4310.0,0.92470002]
[1757099083937,1.69539474,4310.1,4310.0,1.07630002]
[1757099085439,1.09689474,4310.1,4310.0,1.34140002]
[1757099086740,0.86089474,4310.1,4310.0,1.34140002]
[1757099088942,0.59839474,4310.1,4310.0,1.34140002]
[1757099090146,0.59952118,4310.1,4310.0,1.34140002]
[1757099091339,0.59952118,4310.1,4310.0,1.0436]
[1757099092640,3.2078,4310.8,4310.7,0.8468]
[1757099092939,0.3516,4311.1,4310.7,0.8468]
[1757099093249,0.6069,4311.4,4311.3,0.4861]
[1757099093545,0.4913,4311.4,4311.3,0.8468]
[1757099094136,0.2553,4311.4,4311.3,0.8468]
[1757099094339,0.6069,4311.4,4311.3,0.8468]
[1757099095048,3.2078,4311.5,4311.4,0.8468]
[1757099096547,0.0972,4312.5,4311.9,0.4861]
[1757099096548,1.0987,4312.0,4311.9,0.4861]
[1757099096852,0.8627,4312.0,4311.9,0.8468]
[1757099097934,3.2078,4312.2,4312.1,0.4861]
[1757099098139,3.2078,4312.2,4312.1,0.8468]
[1757099100148,0.3516,4312.4,4312.1,0.8468]
[1757099100344,4.0705,4312.7,4312.6,0.4861]
[1757099100550,4.3065,4312.7,4312.6,0.8468]
[1757099100753,4.3065,4312.7,4312.6,0.5983]
[1757099100936,4.3065,4312.7,4312.6,0.2376]
[1757099101446,4.3065,4312.7,4312.3,0.3607]
[1757099101743,4.3065,4312.7,4312.1,0.3607]
[1757099102753,4.3065,4312.7,4312.6,0.8468]
[1757099103142,3.4631,4312.7,4312.6,0.8468]
[1757099103349,0.2553,4312.7,4312.6,0.8468]
[1757099103944,0.6069,4312.7,4312.6,0.8468]
[1757099104349,0.8627,4312.7,4312.6,0.8468]
[1757099105246,0.1524,4312.5,4312.3,0.3607]
[1757099105550,0.8627,4312.4,4312.3,0.5983]
[1757099105853,0.8627,4312.4,4312.3,0.8468]
[1757099106153,0.2553,4312.4,4312.3,0.8468]
[1757099107147,0.3884,4313.0,4312.3,0.4861]
[1757099107348,0.6069,4312.9,4312.8,0.2376]
[1757099107547,0.8627,4312.9,4312.8,0.8468]
[1757099108055,0.8627,4312.9,4312.8,0.5983]
[1757099108456,0.8627,4312.9,4312.8,0.2376]
[1757099108652,0.8627,4312.9,4312.8,0.5983]
[1757099109450,0.8627,4312.9,4312.8,0.8468]
[1757099109652,3.2078,4313.1,4312.8,0.4861]
[1757099109956,3.4631,4313.1,4313.0,0.9857]
[1757099110250,3.2078,4313.1,4313.0,0.9857]
[1757099110456,3.5594,4313.6,4313.1,0.3607]
[1757099110658,4.0705,4313.6,4313.5,0.4861]
[1757099110959,4.0705,4313.6,4313.5,0.8468]
[1757099111453,0.1524,4313.5,4313.2,0.3607]
[1757099111659,0.8627,4313.3,4313.2,0.5983]
[1757099112261,3.2078,4313.6,4313.3,0.3607]
[1757099112558,0.6069,4313.4,4313.3,0.8468]
[1757099112856,0.8627,4313.4,4313.3,0.8468]
[1757099113958,0.2553,4313.4,4313.3,0.8468]
[1757099114254,3.8147,4313.6,4313.5,0.625]
[1757099114459,3.8147,4313.6,4313.5,0.9857]
[1757099114656,4.0705,4313.6,4313.5,0.9857]
[1757099115059,4.0705,4313.6,4313.5,0.8468]
[1757099115858,4.0705,4313.6,4313.5,0.5983]
[1757099117154,32.20128624,4314.9,4313.5,0.9857]
[1757099117155,0.3516,4314.0,4313.5,0.9857]
[1757099117360,3.5594,4314.1,4313.6,0.3607]
[1757099117559,0.6069,4314.1,4314.0,0.4861]
[1757099117754,0.8627,4314.1,4314.0,0.8468]
[1757099121460,0.3719,4315.1,4314.1,0.3467]
[1757099121660,0.8646,4315.1,4315.0,0.8357]
[1757099121956,0.1524,4315.5,4315.0,0.633]
[1757099122154,0.3719,4315.4,4315.3,0.2513]
[1757099122354,0.8646,4315.4,4315.3,0.2513]
[1757099122756,0.8646,4315.4,4315.3,0.8357]
[1757099125857,3.2078,4315.9,4315.4,0.598]
[1757099126163,1.0089,4315.5,4315.4,0.598]
[1757099126362,1.0089,4315.5,4315.0,3.3518]
[1757099126561,0.8646,4315.2,4315.1,0.8357]
[1757099127066,0.2509,4315.2,4315.1,0.8357]
[1757099127456,0.3719,4315.5,4315.1,0.8357]
[1757099127662,0.2509,4315.3,4315.2,0.3467]
[1757099127862,0.2509,4315.3,4315.2,0.8357]
[1757099128264,0.3719,4315.5,4315.2,0.8357]
[1757099128462,3.2078,4315.9,4315.8,0.8357]
[1757099128762,3.8306,4315.9,4315.8,0.8357]
[1757099128968,3.4587,4315.9,4315.8,0.8357]
[1757099129269,0.8646,4315.9,4315.8,0.8357]
[1757099131570,0.8646,4315.9,4315.8,0.2513]
[1757099131766,0.8646,4315.6,4315.5,0.834]
[1757099132171,0.8646,4315.6,4315.5,1.0717]
[1757099132967,0.8646,4315.6,4315.5,1.2157]
[1757099135265,3.2078,4316.4,4315.5,0.869]
[1757099135266,0.3719,4316.3,4315.5,0.869]
[1757099135469,1.45684092,4316.2,4315.5,0.38]
[1757099135669,0.59224092,4316.1,4315.6,0.3467]
[1757099135970,0.6228,4315.8,4315.7,0.8357]
[1757099136972,0.2509,4315.8,4315.7,0.8357]
[1757099137172,3.2078,4316.4,4315.7,0.489]
[1757099137371,0.96420129,4316.3,4315.8,0.3467]
[1757099137573,1.45690129,4316.2,4316.1,0.5844]
[1757099137767,1.45690129,4316.2,4316.1,0.8357]
[1757099137971,0.3719,4316.9,4316.2,0.3467]
[1757099138176,0.3719,4316.9,4316.1,0.489]
[1757099138177,0.84325904,4316.8,4316.7,0.489]
[1757099138478,1.45695904,4316.8,4316.7,0.8357]
[1757099138678,1.45695904,4316.8,4316.7,0.598]
[1757099138874,1.45695904,4316.8,4316.7,0.8357]
[1757099139477,0.3719,4317.4,4316.8,0.3467]
[1757099139673,0.2509,4316.9,4316.8,0.8357]
[1757099140267,0.3719,4317.2,4316.9,0.3467]
[1757099140472,0.6228,4317.2,4317.1,0.489]
[1757099140674,1.21514753,4317.2,4317.1,0.8357]
[1757099140876,1.45694753,4317.2,4317.1,0.8357]
[1757099141177,0.8646,4317.2,4317.1,0.8357]
[1757099141372,1.45687324,4317.2,4317.1,0.8357]
[1757099142982,0.8646,4317.2,4317.1,0.8357]
[1757099143278,1.45690927,4317.2,4317.1,0.8357]
[1757099144478,1.45661317,4317.2,4317.1,0.8357]
[1757099145179,0.8646,4317.2,4317.1,0.8357]
[1757099145382,1.45676606,4317.2,4317.1,0.8357]
[1757099146686,0.1443,4317.0,4316.7,0.4863]
[1757099146876,0.4927,4316.8,4316.7,0.833]
[1757099147077,0.8646,4316.8,4316.7,0.833]
[1757099147476,0.8646,4316.8,4316.7,1.0707]
[1757099152083,0.8098,4317.4,4317.3,0.5925]
[1757099152291,1.40356739,4317.4,4317.3,0.2502]
[1757099153178,1.40356739,4317.4,4317.3,0.5925]
[1757099154686,1.40356739,4317.4,4317.3,0.8299]
[1757099154988,0.1443,4318.0,4317.3,0.4876]
[1757099154989,0.3452,4317.7,4317.3,0.4876]
[1757099155285,0.5801,4317.7,4317.6,0.8299]
[1757099157984,0.8098,4317.7,4317.6,0.8299]
[1757099158488,0.8098,4317.7,4317.3,0.3423]
[1757099158986,0.8098,4317.7,4317.2,0.235]
[1757099159184,0.8098,4317.7,4317.6,0.2502]
[1757099159384,0.8098,4317.7,4317.6,0.5925]
[1757099161192,0.8098,4317.7,4317.6,0.8299]
[1757099161792,3.2078,4318.2,4317.6,0.8299]
[1757099161793,0.3452,4318.0,4317.6,0.8299]
[1757099161996,4.0176,4318.2,4318.1,0.2502]
[1757099162293,4.61143297,4318.2,4318.1,0.8299]
[1757099164695,1.40363297,4318.2,4318.1,0.8299]
[1757099165588,1.40363297,4318.2,4318.1,0.5925]
[1757099165790,1.40363297,4318.2,4317.5,3.3534]
[1757099165990,1.40363297,4318.1,4318.0,0.5925]
[1757099166297,1.40363297,4318.1,4318.0,0.2502]
[1757099166488,0.4646,4317.7,4317.6,0.5925]
[1757099166689,0.8098,4317.7,4317.6,0.5925]
[1757099166886,0.8098,4317.7,4317.6,0.8299]
[1757099168898,0.2349,4317.7,4317.6,0.8299]
[1757099169988,0.3452,4317.9,4317.6,0.4876]
[1757099170293,0.2349,4317.9,4317.8,0.8299]
[1757099170500,0.8098,4318.4,4318.3,0.2502]
[1757099170699,1.40459602,4318.4,4318.3,0.5925]
[1757099172102,1.40459602,4318.4,4318.3,0.8299]
[1757099172999,0.17,4318.9,4318.8,0.8299]
[1757099173199,0.17,4318.9,4318.8,4.2727]
[1757099173401,0.5,4320.0,4318.8,8.2727]
[1757099173705,0.8098,4319.9,4319.8,0.8299]
[1757099173907,0.8098,4319.9,4319.8,1.0649]
[1757099176599,0.2349,4319.9,4319.8,1.0649]
[1757099176803,0.5,4320.0,4319.9,0.8299]
[1757099177000,0.8098,4321.1,4321.0,0.4876]
[1757099177196,0.6097,4321.0,4320.9,0.235]
[1757099177398,0.9549,4321.0,4320.9,0.235]
[1757099177801,0.4646,4320.8,4320.7,0.4862]
[1757099178098,0.5801,4320.8,4320.7,1.0179]
[1757099178298,0.8171,4320.8,4320.7,0.7236]
[1757099178695,0.6146,4320.5,4320.4,0.2361]
[1757099178898,0.6146,4320.5,4320.3,3.2078]
[1757099179298,0.8485,4320.4,4320.3,3.2078]
[1757099179898,0.8485,4320.4,4320.3,3.4439]
[1757099180597,0.3691,4320.4,4320.3,3.9696]
[1757099180805,0.3691,4320.9,4320.3,3.9696]
[1757099181106,0.1451,4321.0,4320.3,3.9696]
[1757099181303,0.1451,4321.5,4320.8,3.9696]
[1757099181496,0.6115,4321.4,4321.3,0.7618]
[1757099181696,0.6115,4321.4,4321.3,0.9978]
[1757099182203,0.6115,4321.4,4321.3,0.7105]
[1757099182409,0.8485,4321.4,4321.3,0.4721]
[1757099183306,0.1352,4321.0,4320.9,0.2361]
[1757099183606,0.6146,4321.0,4320.9,0.2361]
[1757099183805,0.3691,4320.9,4320.8,3.4438]
[1757099184003,0.8485,4320.9,4320.8,3.9183]
[1757099184304,0.6115,4320.9,4320.8,4.2056]
[1757099184503,0.3691,4320.9,4320.8,4.2056]
[1757099184903,0.3691,4321.4,4321.3,0.4745]
[1757099185102,0.3691,4321.7,4321.6,0.4745]
[1757099185301,0.8485,4321.7,4321.6,0.4721]
[1757099185504,0.8485,4321.7,4321.6,0.236]
[1757099185898,3.2078,4322.3,4321.3,3.2078]
[1757099185899,0.4794,4321.4,4321.3,3.2078]
[1757099186105,0.8485,4321.4,4321.3,3.2078]
[1757099186409,0.8485,4321.4,4321.0,0.236]
[1757099187404,0.4794,4321.4,4320.6,3.4438]
[1757099187603,0.4794,4320.7,4320.6,3.4438]
[1757099187802,0.8485,4320.7,4320.6,3.4438]
[1757099188009,0.8485,4320.7,4320.6,4.203]
[1757099188209,0.1352,4321.0,4320.6,4.203]
[1757099188511,0.6146,4321.0,4320.9,0.4745]
[1757099188706,0.6146,4321.0,4320.6,3.4438]
[1757099188903,0.3691,4320.9,4320.6,3.4438]
[1757099189104,0.8485,4320.7,4320.6,3.6799]
[1757099189305,0.8485,4320.7,4320.6,3.9183]
[1757099189701,0.8485,4320.7,4320.6,3.4438]
[1757099189900,0.8485,4320.7,4320.6,0.236]
[1757099190300,0.3691,4320.6,4320.1,3.4925]
[1757099190505,0.7467,4320.5,4320.4,0.4745]
[1757099191304,0.9837,4320.5,4320.4,0.4745]
[1757099192099,0.7467,4320.5,4320.4,0.7592]
[1757099192703,0.7467,4320.5,4320.4,0.4745]
[1757099192904,0.9837,4320.5,4320.4,0.4745]
[1757099194605,0.9837,4320.5,4320.2,0.236]
[1757099195007,0.9837,4320.5,4320.4,0.2361]
[1757099195408,0.9837,4320.5,4320.4,0.4745]
[1757099196813,0.8485,4320.4,4320.3,0.236]
[1757099197010,0.8485,4320.4,4320.3,0.7105]
[1757099199215,0.8485,4320.4,4320.3,0.236]
[1757099199610,0.8485,4320.4,4320.3,0.4721]
[1757099200217,0.8485,4320.4,4320.3,0.7105]
[1757099200712,0.8485,4320.4,4320.3,0.9952]
[1757099201712,0.8485,4320.4,4320.3,0.7105]
[1757099202114,0.8485,4320.4,4320.3,0.9952]
[1757099203110,0.8485,4320.4,4320.3,0.7105]
[1757099204411,0.8485,4320.4,4320.3,0.4721]
[1757099204913,0.8485,4320.4,4320.3,0.236]
[1757099205918,0.8485,4320.4,4320.3,0.4721]
[1757099206815,0.8485,4320.4,4320.3,0.236]
[1757099207018,1.44364881,4320.4,4320.3,0.236]
[1757099207211,0.4794,4320.2,4320.1,3.4428]
[1757099207511,0.8485,4320.2,4320.1,3.4428]
[1757099208318,0.8485,4320.2,4320.1,0.235]
[1757099209112,1.44361002,4320.2,4320.1,0.235]
[1757099209608,1.44361002,4320.2,4319.6,3.2078]
[1757099209822,3.343,4320.5,4319.6,3.2078]
[1757099209823,0.8007,4319.7,4319.6,3.4329]
[1757099210019,0.8007,4319.7,4319.6,3.6679]
[1757099210515,0.8007,4319.7,4319.6,3.904]
[1757099213823,0.8007,4319.7,4319.6,3.4428]
[1757099214616,0.8007,4319.7,4319.6,3.904]
[1757099214816,0.8007,4319.7,4319.6,3.2078]
[1757099215020,0.8007,4319.7,4319.6,3.4329]